fUST/lending_fUST_20250718
["ID","MTS","AMOUNT","RATE_DAILY","PERIOD"]
[373055310,1752849043465,-500.0,0.00017135,2]
[373055312,1752849043474,-460.0,0.00017135,2]
[373055314,1752849043483,-460.0,0.00017135,2]
[373055316,1752849043493,-3559.22,0.00017136,2]
[373055318,1752849043503,-1009.17,0.00017136,2]
[373055320,1752849043513,-460.0,0.00017136,2]
[373055322,1752849043522,-1147.06,0.00017136,2]
[373055324,1752849043532,-582.84236917,0.00017136,2]
[373055326,1752849043542,-460.0,0.00017137,2]
[373055328,1752849043551,-245.0,0.00017138,2]
[373055330,1752849043572,-151.0,0.00017138,2]
[373055332,1752849043582,-460.0,0.00017138,2]
[373055334,1752849043592,-460.0,0.00017138,2]
[373055336,1752849043601,-460.0,0.00017138,2]
[373055338,1752849043611,-460.0,0.00017138,2]
[373055340,1752849043621,-460.0,0.00017138,2]
[373055342,1752849043631,-356.72942245,0.00017138,2]
[373055344,1752849043640,-473.36847848,0.00017138,2]
[373055346,1752849043649,-460.0,0.00017138,2]
[373055348,1752849043659,-473.46929355,0.00017138,2]
[373055350,1752849043668,-460.0,0.00017138,2]
[373055351,1752849043678,-460.0,0.00017138,2]
[373055353,1752849043687,-460.0,0.00017138,2]
[373055355,1752849043697,-2090.71,0.00017138,2]
[373055357,1752849043707,-460.0,0.00017138,2]
[373055359,1752849043720,-460.0,0.00017138,2]
[373055361,1752849043730,-174.11915676,0.00017138,2]
[373055363,1752849043739,-460.0,0.00017138,2]
[373055365,1752849043749,-569.1068489,0.00017138,2]
[373055367,1752849043759,-460.0,0.00017138,2]
[373055369,1752849043768,-1443.93,0.00017138,2]
[373055371,1752849043778,-460.0,0.00017138,2]
[373055373,1752849043789,-460.0,0.00017138,2]
[373055375,1752849043799,-3883.56,0.00017138,2]
[373055377,1752849043809,-1381.69,0.00017138,2]
[373055379,1752849043823,-500.0,0.00017167,2]
[373055381,1752849043833,-502.10897302,0.00017167,2]
[373055383,1752849043842,-212.74842167,0.00017172,2]
[373055385,1752849043852,-500.0,0.00017206,2]
[373055387,1752849043862,-500.0,0.00017206,2]
[373055389,1752849043871,-500.0,0.00017206,2]
[373055391,1752849043881,-500.0,0.00017206,2]
[373055393,1752849043890,-500.0,0.00017209,2]
[373055395,1752849043901,-500.0,0.00017213,2]
[373055397,1752849043911,-500.28196058,0.00017213,2]
[373055399,1752849043921,-323.0,0.00017238,2]
[373055401,1752849043931,-500.0,0.00017259,2]
[373055403,1752849043940,-500.0,0.00017259,2]
[373055405,1752849043950,-500.0,0.00017262,2]
[373055407,1752849043960,-275.63244462,0.0001729,2]
[373055409,1752849043970,-460.0,0.00017308,2]
[373055411,1752849043980,-460.0,0.00017308,2]
[373055413,1752849043989,-460.0,0.00017308,2]
[373055415,1752849043999,-1449.78,0.00017308,2]
[373055417,1752849044008,-460.0,0.0001731,2]
[373055419,1752849044018,-460.0,0.0001731,2]
[373055421,1752849044027,-460.0,0.0001731,2]
[373055423,1752849044036,-460.0,0.0001731,2]
[373055425,1752849044045,-564.89,0.0001731,2]
[373055427,1752849044054,-460.0,0.0001731,2]
[373055429,1752849044068,-1959.0,0.0001731,2]
[373055431,1752849044078,-460.0,0.0001731,2]
[373055433,1752849044087,-4077.21,0.0001731,2]
[373055435,1752849044096,-1343.08,0.0001731,2]
[373055437,1752849044105,-460.0,0.0001731,2]
[373055438,1752849044115,-460.0,0.0001731,2]
[373055441,1752849044125,-460.0,0.00017311,2]
[373055442,1752849044134,-274.42476097,0.00017311,2]
[373055444,1752849044144,-460.0,0.00017312,2]
[373055446,1752849044154,-460.0,0.00017312,2]
[373055448,1752849044164,-460.0,0.00017312,2]
[373055450,1752849044174,-460.0,0.00017312,2]
[373055452,1752849044184,-460.0,0.00017312,2]
[373055454,1752849044194,-460.0,0.00017312,2]
[373055456,1752849044203,-460.0,0.00017312,2]
[373055458,1752849044213,-460.0,0.00017312,2]
[373055460,1752849044223,-460.0,0.00017312,2]
[373055463,1752849044233,-460.0,0.00017312,2]
[373055464,1752849044242,-460.0,0.00017312,2]
[373055466,1752849044252,-460.0,0.00017312,2]
[373055469,1752849044262,-460.0,0.00017312,2]
[373055470,1752849044272,-460.0,0.00017312,2]
[373055472,1752849044282,-151.0,0.00017312,2]
[373055474,1752849044292,-460.0,0.00017312,2]
[373055476,1752849044302,-460.0,0.00017312,2]
[373055478,1752849044312,-494.691019,0.00017312,2]
[373055480,1752849044325,-460.0,0.00017312,2]
[373055482,1752849044334,-494.691019,0.00017312,2]
[373055484,1752849044344,-460.0,0.00017312,2]
[373055486,1752849044354,-648.75,0.00017312,2]
[373055488,1752849044364,-460.0,0.00017312,2]
[373055490,1752849044374,-460.0,0.00017312,2]
[373055492,1752849044383,-460.0,0.00017312,2]
[373055494,1752849044393,-460.0,0.00017312,2]
[373055496,1752849044402,-460.0,0.00017312,2]
[373055498,1752849044411,-460.0,0.00017312,2]
[373055500,1752849044421,-151.0,0.00017312,2]
[373055502,1752849044430,-163.445326,0.00017312,2]
[373055504,1752849044440,-594.23040154,0.00017312,2]
[373055506,1752849044449,-223.470442,0.00017312,2]
[373055508,1752849044459,-223.470442,0.00017312,2]
[373055510,1752849044470,-460.0,0.00017312,2]
[373055512,1752849044489,-488.61,0.00017312,2]
[373055514,1752849044509,-460.0,0.00017312,2]
[373055516,1752849044530,-460.0,0.00017313,2]
[373055518,1752849044551,-460.0,0.00017313,2]
[373055520,1752849044561,-467.59975641,0.00017313,2]
[373055522,1752849044574,-501.99323963,0.00017387,2]
[373055524,1752849044583,-458.25357939,0.00017387,2]
[373055526,1752849044594,-500.0,0.00017387,2]
[373055528,1752849044603,-500.0,0.00017387,2]
[373055530,1752849044613,-500.0,0.00017387,2]
[373055532,1752849044623,-447.25412963,0.00017387,2]
[373055534,1752849044632,-500.0,0.00017387,2]
[373055537,1752849044644,-342.96839752,0.00017387,2]
[373055538,1752849044654,-500.0,0.00017387,2]
[373055540,1752849044663,-511.33106895,0.00017387,2]
[373055542,1752849044673,-460.0,0.00017407,2]
[373055544,1752849044683,-460.0,0.00017407,2]
[373055546,1752849044692,-460.0,0.00017407,2]
[373055549,1752849044703,-460.0,0.00017407,2]
[373055551,1752849044713,-460.0,0.00017407,2]
[373055552,1752849044724,-460.0,0.00017407,2]
[373055555,1752849044734,-460.0,0.00017407,2]
[373055557,1752849044743,-460.0,0.00017407,2]
[373055559,1752849044754,-460.0,0.00017407,2]
[373055561,1752849044763,-460.0,0.00017407,2]
[373055562,1752849044773,-460.0,0.00017407,2]
[373055564,1752849044782,-460.0,0.00017407,2]
[373055567,1752849044792,-460.0,0.00017407,2]
[373055568,1752849044802,-151.0,0.00017407,2]
[373055570,1752849044811,-314.53424283,0.00017407,2]
[373055572,1752849044827,-502.49,0.00017407,2]
[373055574,1752849044836,-460.0,0.00017407,2]
[373055576,1752849044846,-460.0,0.00017407,2]
[373055578,1752849044856,-460.0,0.00017407,2]
[373055581,1752849044866,-151.0,0.00017407,2]
[373055583,1752849044876,-151.0,0.00017407,2]
[373055585,1752849044886,-460.0,0.00017407,2]
[373055587,1752849044896,-460.0,0.00017407,2]
[373055589,1752849044906,-460.0,0.00017407,2]
[373055591,1752849044916,-460.0,0.00017407,2]
[373055593,1752849044926,-460.0,0.00017407,2]
[373055595,1752849044936,-460.0,0.00017407,2]
[373055597,1752849044946,-460.0,0.00017407,2]
[373055598,1752849044955,-460.0,0.00017407,2]
[373055599,1752849044966,-226.28,0.00017407,2]
[373055600,1752849044976,-460.0,0.00017407,2]
[373055601,1752849044986,-460.0,0.00017407,2]
[373055602,1752849044996,-460.0,0.00017407,2]
[373055603,1752849045006,-808.77,0.00017407,2]
[373055604,1752849045017,-460.0,0.00017407,2]
[373055605,1752849045026,-232.03,0.00017407,2]
[373055606,1752849045037,-460.0,0.00017407,2]
[373055607,1752849045046,-779.54,0.00017407,2]
[373055609,1752849045056,-460.0,0.00017407,2]
[373055611,1752849045069,-460.0,0.00017407,2]
[373055613,1752849045078,-680.58,0.00017407,2]
[373055615,1752849045088,-460.0,0.00017407,2]
[373055617,1752849045097,-460.0,0.00017407,2]
[373055619,1752849045107,-498.2,0.00017408,2]
[373055621,1752849045117,-460.0,0.00017408,2]
[373055623,1752849045126,-460.0,0.00017408,2]
[373055625,1752849045135,-460.0,0.00017408,2]
[373055627,1752849045145,-460.0,0.00017408,2]
[373055629,1752849045154,-713.734342,0.00017408,2]
[373055631,1752849045164,-713.734342,0.00017408,2]
[373055633,1752849045174,-483.49120769,0.00017408,2]
[373055635,1752849045183,-151.0,0.00017408,2]
[373055648,1752849045291,-151.0,0.00017408,2]
[373055650,1752849045301,-460.0,0.00017408,2]
[373055652,1752849045311,-460.0,0.00017408,2]
[373055654,1752849045323,-539.0,0.00017409,2]
[373055656,1752849045333,-349.0,0.00017409,2]
[373055658,1752849045342,-500.0,0.00017409,2]
[373055660,1752849045351,-460.0,0.00017409,2]
[373055662,1752849045360,-460.0,0.00017409,2]
[373055664,1752849045369,-3559.22,0.0001741,2]
[373055666,1752849045379,-1009.17,0.0001741,2]
[373055668,1752849045388,-1147.06,0.0001741,2]
[373055670,1752849045398,-460.0,0.00017411,2]
[373055672,1752849045408,-200.36863264,0.00017412,2]
[373055674,1752849045417,-376.51007082,0.00017412,2]
[373055676,1752849045427,-460.0,0.00017412,2]
[373055678,1752849045436,-460.0,0.00017412,2]
[373055680,1752849045445,-460.0,0.00017412,2]
[373055682,1752849045455,-460.0,0.00017412,2]
[373055684,1752849045464,-460.0,0.00017412,2]
[373055686,1752849045473,-460.0,0.00017412,2]
[373055688,1752849045483,-460.0,0.00017412,2]
[373055690,1752849045492,-460.0,0.00017412,2]
[373055692,1752849045502,-2090.71,0.00017412,2]
[373055695,1752849045512,-460.0,0.00017412,2]
[373055697,1752849045521,-460.0,0.00017412,2]
[373055699,1752849045531,-367.97662805,0.00017412,2]
[373055701,1752849045540,-460.0,0.00017412,2]
[373055703,1752849045550,-1443.93,0.00017412,2]
[373055705,1752849045559,-168.23100505,0.00017412,2]
[373055707,1752849045571,-460.0,0.00017412,2]
[373055709,1752849045580,-3883.56,0.00017412,2]
[373055711,1752849045590,-1381.69,0.00017412,2]
[373055713,1752849045599,-505.82283817,0.00017414,2]
[373055715,1752849045608,-500.0,0.00017414,2]
[373055717,1752849045618,-501.70385303,0.00017414,2]
[373055719,1752849045627,-1779.88143012,0.00017445,2]
[373055721,1752849045637,-2762.84226786,0.00017581,2]
[373055723,1752849045647,-460.0,0.00017582,2]
[373055725,1752849045656,-460.0,0.00017582,2]
[373055727,1752849045666,-460.0,0.00017582,2]
[373055729,1752849045676,-1449.78,0.00017582,2]
[373055731,1752849045685,-460.0,0.00017584,2]
[373055733,1752849045695,-460.0,0.00017584,2]
[373055735,1752849045705,-460.0,0.00017584,2]
[373055737,1752849045718,-460.0,0.00017584,2]
[373055739,1752849045727,-564.89,0.00017584,2]
[373055741,1752849045736,-460.0,0.00017584,2]
[373055743,1752849045745,-1959.0,0.00017584,2]
[373055745,1752849045754,-460.0,0.00017584,2]
[373055747,1752849045764,-4077.21,0.00017584,2]
[373055749,1752849045773,-1343.08,0.00017584,2]
[373055751,1752849045782,-460.0,0.00017584,2]
[373055753,1752849045792,-460.0,0.00017584,2]
[373055755,1752849045801,-460.0,0.00017585,2]
[373055757,1752849045811,-557.83594264,0.00017585,2]
[373055758,1752849045822,-500.0,0.00017585,2]
[373055761,1752849045832,-460.0,0.00017586,2]
[373055762,1752849045841,-460.0,0.00017586,2]
[373055765,1752849045851,-460.0,0.00017586,2]
[373055766,1752849045860,-460.0,0.00017586,2]
[373055769,1752849045870,-460.0,0.00017586,2]
[373055770,1752849045879,-460.0,0.00017586,2]
[373055772,1752849045888,-460.0,0.00017586,2]
[373055774,1752849045898,-460.0,0.00017586,2]
[373055776,1752849045908,-460.0,0.00017586,2]
[373055779,1752849045918,-460.0,0.00017586,2]
[373055781,1752849045927,-460.0,0.00017586,2]
[373055783,1752849045937,-329.94,0.00017586,2]
[373055785,1752849045947,-460.0,0.00017586,2]
[373055787,1752849045956,-460.0,0.00017586,2]
[373055789,1752849045966,-460.0,0.00017586,2]
[373055791,1752849045975,-460.0,0.00017586,2]
[373055793,1752849045984,-460.0,0.00017586,2]
[373055796,1752849045993,-460.0,0.00017586,2]
[373055799,1752849046002,-648.75,0.00017586,2]
[373055802,1752849046012,-460.0,0.00017586,2]
[373055805,1752849046021,-460.0,0.00017586,2]
[373055808,1752849046031,-460.0,0.00017586,2]
[373055811,1752849046040,-460.0,0.00017586,2]
[373055814,1752849046049,-460.0,0.00017586,2]
[373055817,1752849046059,-460.0,0.00017586,2]
[373055820,1752849046070,-488.61,0.00017586,2]
[373055822,1752849046079,-460.0,0.00017586,2]
[373055824,1752849046089,-460.0,0.00017587,2]
[373055826,1752849046098,-460.0,0.00017681,2]
[373055828,1752849046108,-460.0,0.00017681,2]
[373055830,1752849046117,-460.0,0.00017681,2]
[373055832,1752849046127,-460.0,0.00017681,2]
[373055834,1752849046136,-151.0,0.00017681,2]
[373055836,1752849046145,-151.0,0.00017681,2]
[373055838,1752849046155,-151.926616,0.00017681,2]
[373055840,1752849046164,-151.0,0.00017681,2]
[373055842,1752849046174,-460.0,0.00017681,2]
[373055844,1752849046183,-460.0,0.00017681,2]
[373055846,1752849046193,-460.0,0.00017681,2]
[373055847,1752849046202,-460.0,0.00017681,2]
[373055850,1752849046213,-460.0,0.00017681,2]
[373055852,1752849046222,-151.0,0.00017681,2]
[373055854,1752849046232,-460.0,0.00017681,2]
[373055856,1752849046242,-251.911228,0.00017681,2]
[373055858,1752849046252,-251.911228,0.00017681,2]
[373055860,1752849046263,-151.0,0.00017681,2]
[373055862,1752849046273,-442.27523195,0.00017681,2]
[373055864,1752849046283,-460.0,0.00017681,2]
[373055866,1752849046292,-460.0,0.00017681,2]
[373055868,1752849046302,-259.486165,0.00017681,2]
[373055870,1752849046311,-259.486165,0.00017681,2]
[373055872,1752849046322,-502.49,0.00017681,2]
[373055874,1752849046332,-460.0,0.00017681,2]
[373055876,1752849046341,-460.0,0.00017681,2]
[373055878,1752849046350,-460.0,0.00017681,2]
[373055880,1752849046359,-460.0,0.00017681,2]
[373055882,1752849046368,-460.0,0.00017681,2]
[373055884,1752849046377,-460.0,0.00017681,2]
[373055885,1752849046387,-460.0,0.00017681,2]
[373055888,1752849046396,-501.88,0.00017681,2]
[373055890,1752849046405,-460.0,0.00017681,2]
[373055891,1752849046415,-460.0,0.00017681,2]
[373055894,1752849046424,-460.0,0.00017681,2]
[373055896,1752849046433,-460.0,0.00017681,2]
[373055897,1752849046442,-460.0,0.00017681,2]
[373055900,1752849046452,-460.0,0.00017681,2]
[373055901,1752849046462,-808.77,0.00017681,2]
[373055903,1752849046471,-460.0,0.00017681,2]
[373055905,1752849046480,-460.0,0.00017681,2]
[373055908,1752849046491,-779.54,0.00017681,2]
[373055909,1752849046501,-460.0,0.00017681,2]
[373055912,1752849046511,-460.0,0.00017681,2]
[373055913,1752849046521,-680.58,0.00017681,2]
[373055915,1752849046531,-460.0,0.00017681,2]
[373055918,1752849046541,-498.2,0.00017682,2]
[373055920,1752849046552,-460.0,0.00017682,2]
[373055922,1752849046562,-460.0,0.00017682,2]
[373055924,1752849046575,-460.0,0.00017682,2]
[373055926,1752849046584,-460.0,0.00017682,2]
[373055928,1752849046594,-151.0,0.00017682,2]
[373055930,1752849046603,-460.0,0.00017682,2]
[373055932,1752849046613,-460.0,0.00017682,2]
[373055934,1752849046623,-539.0,0.00017683,2]
[373055936,1752849046632,-500.0,0.00017683,2]
[373055938,1752849046642,-460.0,0.00017683,2]
[373055940,1752849046651,-460.0,0.00017683,2]
[373055942,1752849046661,-3559.22,0.00017684,2]
[373055944,1752849046671,-1009.17,0.00017684,2]
[373055946,1752849046681,-1147.06,0.00017684,2]
[373055948,1752849046691,-460.0,0.00017685,2]
[373055950,1752849046700,-460.0,0.00017686,2]
[373055952,1752849046710,-180.18016674,0.00017686,2]
[373055954,1752849046723,-460.0,0.00017686,2]
[373055956,1752849046732,-460.0,0.00017686,2]
[373055958,1752849046741,-460.0,0.00017686,2]
[373055960,1752849046751,-460.0,0.00017686,2]
[373055962,1752849046760,-460.0,0.00017686,2]
[373055964,1752849046769,-2090.71,0.00017686,2]
[373055966,1752849046778,-460.0,0.00017686,2]
[373055968,1752849046787,-460.0,0.00017686,2]
[373055970,1752849046796,-1443.93,0.00017686,2]
[373055972,1752849046806,-460.0,0.00017686,2]
[373055974,1752849046815,-151.0,0.00017686,2]
[373055976,1752849046829,-494.691019,0.00017686,2]
[373055978,1752849046838,-494.691019,0.00017686,2]
[373055980,1752849046847,-3883.56,0.00017686,2]
[373055982,1752849046857,-223.470442,0.00017686,2]
[373055984,1752849046867,-223.470442,0.00017686,2]
[373055986,1752849046877,-1381.69,0.00017686,2]
[373055988,1752849046887,-503.55301503,0.00017715,2]
[373055990,1752849046896,-151.0,0.00017753,2]
[373055992,1752849046906,-318.91407752,0.00017754,2]
[373055994,1752849046915,-1000.0,0.00017754,2]
[373055996,1752849046925,-500.0,0.00017754,2]
[373055998,1752849046934,-1000.0,0.00017754,2]
[373056000,1752849046943,-1000.0,0.00017757,2]
[373056002,1752849046952,-500.0,0.00017807,2]
[373056004,1752849046962,-828.94771973,0.00017807,2]
[373056006,1752849046971,-501.61679817,0.0001781,2]
[373056008,1752849046980,-460.0,0.00017856,2]
[373056010,1752849046989,-460.0,0.00017856,2]
[373056012,1752849046999,-460.0,0.00017856,2]
[373056014,1752849047008,-1449.78,0.00017856,2]
[373056016,1752849047018,-460.0,0.00017858,2]
[373056018,1752849047027,-391.42,0.00017858,2]
[373056020,1752849047036,-460.0,0.00017858,2]
[373056022,1752849047045,-564.89,0.00017858,2]
[373056024,1752849047055,-460.0,0.00017858,2]
[373056026,1752849047065,-1959.0,0.00017858,2]
[373056028,1752849047080,-460.0,0.00017858,2]
[373056030,1752849047089,-4077.21,0.00017858,2]
[373056032,1752849047098,-1343.08,0.00017858,2]
[373056034,1752849047107,-460.0,0.00017858,2]
[373056036,1752849047116,-460.0,0.00017859,2]
[373056038,1752849047126,-460.0,0.0001786,2]
[373056040,1752849047135,-460.0,0.0001786,2]
[373056042,1752849047144,-460.0,0.0001786,2]
[373056044,1752849047154,-460.0,0.0001786,2]
[373056046,1752849047164,-460.0,0.0001786,2]
[373056048,1752849047174,-460.0,0.0001786,2]
[373056050,1752849047184,-151.0,0.0001786,2]
[373056052,1752849047193,-460.0,0.0001786,2]
[373056054,1752849047203,-460.0,0.0001786,2]
[373056056,1752849047212,-460.0,0.0001786,2]
[373056058,1752849047222,-332.01,0.0001786,2]
[373056060,1752849047231,-460.0,0.0001786,2]
[373056062,1752849047241,-460.0,0.0001786,2]
[373056064,1752849047251,-460.0,0.0001786,2]
[373056066,1752849047270,-460.0,0.0001786,2]
[373056068,1752849047282,-460.0,0.0001786,2]
[373056070,1752849047293,-460.0,0.0001786,2]
[373056072,1752849047304,-648.75,0.0001786,2]
[373056074,1752849047314,-460.0,0.0001786,2]
[373056076,1752849047325,-460.0,0.0001786,2]
[373056078,1752849047335,-460.0,0.0001786,2]
[373056081,1752849047346,-460.0,0.0001786,2]
[373056082,1752849047355,-460.0,0.0001786,2]
[373056084,1752849047364,-460.0,0.0001786,2]
[373056087,1752849047375,-488.61,0.0001786,2]
[373056089,1752849047384,-460.0,0.0001786,2]
[373056090,1752849047393,-460.0,0.00017861,2]
[373056093,1752849047403,-151.0,0.00017861,2]
[373056095,1752849047413,-415.5997077,0.00017912,2]
[373056096,1752849047422,-1000.0,0.00017935,2]
[373056098,1752849047431,-1000.0,0.00017935,2]
[373056100,1752849047441,-680.07601105,0.00017935,2]
[373056102,1752849047451,-481.09729519,0.00017935,2]
[373056105,1752849047460,-460.0,0.00017955,2]
[373056106,1752849047470,-460.0,0.00017955,2]
[373056108,1752849047479,-460.0,0.00017955,2]
[373056111,1752849047489,-460.0,0.00017955,2]
[373056113,1752849047498,-460.0,0.00017955,2]
[373056115,1752849047508,-460.0,0.00017955,2]
[373056117,1752849047517,-460.0,0.00017955,2]
[373056119,1752849047527,-460.0,0.00017955,2]
[373056120,1752849047536,-460.0,0.00017955,2]
[373056123,1752849047546,-460.0,0.00017955,2]
[373056124,1752849047555,-502.49,0.00017955,2]
[373056127,1752849047565,-460.0,0.00017955,2]
[373056128,1752849047577,-460.0,0.00017955,2]
[373056130,1752849047586,-460.0,0.00017955,2]
[373056133,1752849047597,-460.0,0.00017955,2]
[373056135,1752849047607,-460.0,0.00017955,2]
[373056137,1752849047617,-713.734342,0.00017955,2]
[373056139,1752849047626,-713.734342,0.00017955,2]
[373056141,1752849047635,-460.0,0.00017955,2]
[373056143,1752849047645,-509.65264601,0.00017955,2]
[373056145,1752849047654,-460.0,0.00017955,2]
[373056147,1752849047663,-460.0,0.00017955,2]
[373056158,1752849047753,-460.0,0.00017955,2]
[373056160,1752849047775,-460.0,0.00017955,2]
[373056162,1752849047784,-460.0,0.00017955,2]
[373056164,1752849047794,-460.0,0.00017955,2]
[373056166,1752849047804,-808.77,0.00017955,2]
[373056168,1752849047813,-460.0,0.00017955,2]
[373056170,1752849047824,-151.0,0.00017955,2]
[373056172,1752849047835,-151.0,0.00017955,2]
[373056174,1752849047844,-460.0,0.00017955,2]
[373056176,1752849047853,-779.54,0.00017955,2]
[373056178,1752849047862,-460.0,0.00017955,2]
[373056180,1752849047872,-460.0,0.00017955,2]
[373056182,1752849047881,-680.58,0.00017955,2]
[373056184,1752849047890,-460.0,0.00017955,2]
[373056186,1752849047900,-498.2,0.00017956,2]
[373056188,1752849047909,-460.0,0.00017956,2]
[373056190,1752849047918,-460.0,0.00017956,2]
[373056191,1752849047927,-460.0,0.00017956,2]
[373056192,1752849047937,-198.66769342,0.00017956,2]
[373056193,1752849047946,-460.0,0.00017956,2]
[373056194,1752849047956,-460.0,0.00017956,2]
[373056195,1752849047965,-539.0,0.00017957,2]
[373056196,1752849047974,-460.0,0.00017957,2]
[373056197,1752849047983,-460.0,0.00017957,2]
[373056198,1752849047993,-3559.22,0.00017958,2]
[373056199,1752849048003,-1009.17,0.00017958,2]
[373056200,1752849048012,-1147.06,0.00017958,2]
[373056201,1752849048021,-460.0,0.00017959,2]
[373056202,1752849048031,-460.0,0.0001796,2]
[373056203,1752849048040,-460.0,0.0001796,2]
[373056204,1752849048049,-362.05662059,0.0001796,2]
[373056205,1752849048059,-581.44543073,0.0001796,2]
[373056206,1752849048071,-460.0,0.0001796,2]
[373056207,1752849048081,-2090.71,0.0001796,2]
[373056208,1752849048091,-460.0,0.0001796,2]
[373056209,1752849048100,-460.0,0.0001796,2]
[373056210,1752849048110,-1443.93,0.0001796,2]
[373056211,1752849048120,-460.0,0.0001796,2]
[373056212,1752849048130,-3883.56,0.0001796,2]
[373056213,1752849048141,-1381.69,0.0001796,2]
[373056214,1752849048150,-889.33185781,0.00018,2]
[373056215,1752849048160,-5589.31941783,0.00018,2]
[373056216,1752849048170,-16552.94708938,0.00018,2]
[373056217,1752849048179,-420.0,0.00018017,2]
[373056218,1752849048189,-151.0,0.0001806,2]
[373056219,1752849048198,-367.320946,0.0001806,2]
[373056220,1752849048208,-367.320946,0.0001806,2]
[373056221,1752849048217,-151.0,0.0001806,2]
[373056222,1752849048226,-151.0,0.0001806,2]
[373056223,1752849048236,-259.195109,0.0001806,2]
[373056224,1752849048246,-151.0,0.0001806,2]
[373056225,1752849048255,-251.911228,0.0001806,2]
[373056226,1752849048269,-251.911228,0.0001806,2]
[373056227,1752849048279,-151.0,0.0001806,2]
[373056228,1752849048288,-259.486165,0.0001806,2]
[373056229,1752849048297,-259.486165,0.0001806,2]
[373056230,1752849048307,-150.0,0.00018076,2]
[373056231,1752849048316,-460.0,0.0001813,2]
[373056232,1752849048329,-460.0,0.0001813,2]
[373056233,1752849048339,-460.0,0.0001813,2]
[373056234,1752849048348,-1449.78,0.0001813,2]
[373056235,1752849048358,-525.86343205,0.00018132,2]
[373056236,1752849048368,-460.0,0.00018132,2]
[373056237,1752849048378,-564.89,0.00018132,2]
[373056239,1752849048388,-460.0,0.00018132,2]
[373056241,1752849048397,-1959.0,0.00018132,2]
[373056243,1752849048407,-460.0,0.00018132,2]
[373056245,1752849048416,-4077.21,0.00018132,2]
[373056246,1752849048426,-1343.08,0.00018132,2]
[373056247,1752849048436,-460.0,0.00018132,2]
[373056248,1752849048452,-460.0,0.00018133,2]
[373056249,1752849048463,-1000.0,0.00018133,2]
[373056251,1752849048473,-460.0,0.00018134,2]
[373056253,1752849048483,-460.0,0.00018134,2]
[373056254,1752849048493,-460.0,0.00018134,2]
[373056255,1752849048503,-460.0,0.00018134,2]
[373056256,1752849048513,-460.0,0.00018134,2]
[373056257,1752849048523,-460.0,0.00018134,2]
[373056258,1752849048532,-460.0,0.00018134,2]
[373056259,1752849048542,-460.0,0.00018134,2]
[373056260,1752849048551,-460.0,0.00018134,2]
[373056261,1752849048561,-460.0,0.00018134,2]
[373056262,1752849048573,-460.0,0.00018134,2]
[373056263,1752849048582,-460.0,0.00018134,2]
[373056264,1752849048592,-460.0,0.00018134,2]
[373056265,1752849048602,-460.0,0.00018134,2]